bitfinex/quotes_ETHUSD_20260226
["timestamp","ask_amount","ask_price","bid_price","bid_amount"]
[1772131432069,0.001,2010.9,2009.9,0.6623714]
[1772131433369,0.001,2010.9,2010.0,1.24378109]
[1772131433537,0.001,2010.9,2010.0,1.90615249]
[1772131433741,0.001,2010.9,2010.1,0.6623714]
[1772131434451,0.001,2010.9,2010.0,1.24378109]
[1772131434452,2.73742402,2012.0,2010.3,0.6623714]
[1772131434668,1.39990309,2012.4,2010.9,0.6623714]
[1772131434867,0.62263869,2012.3,2010.9,0.6623714]
[1772131435366,1.24242123,2012.2,2011.0,1.2431626]
[1772131435668,3.16907327,2011.9,2010.5,0.6623714]
[1772131435871,1.36,2011.8,2010.5,0.6623714]
[1772131436552,1.36,2011.8,2010.7,0.6623714]
[1772131436866,2.54643458,2011.9,2010.8,0.6623714]
[1772131437371,1.39994436,2012.4,2011.2,0.6623714]
[1772131438250,0.1576005,2012.4,2011.2,0.6623714]
[1772131438649,0.62263869,2012.3,2011.1,1.24310079]
[1772131439171,0.62263869,2012.3,2010.9,4.9727803]
[1772131439474,0.62263869,2012.1,2010.9,4.9727803]
[1772131440046,1.3999417,2012.4,2011.0,0.6623714]
[1772131440241,1.39989879,2012.4,2011.1,6.917876]
[1772131440450,1.39989879,2012.4,2011.2,0.6623714]
[1772131440651,0.62263869,2012.1,2010.9,4.9727803]
[1772131440864,0.62263869,2011.8,2010.6,1.24340992]
[1772131441075,0.62263869,2011.6,2010.5,1.24343309]
[1772131441868,3.42722939,2011.6,2010.5,1.24343309]
[1772131442067,1.56179147,2011.3,2010.2,1.2436259]
[1772131442240,1.56179147,2011.3,2010.1,4.97462939]
[1772131442241,2.18443016,2011.3,2010.1,1.24368962]
[1772131442442,0.62263869,2011.2,2010.1,1.24368962]
[1772131443650,0.62263869,2011.2,2009.7,1.90743816]
[1772131443651,1.24310079,2011.1,2009.7,1.90743816]
[1772131443872,0.62263869,2010.9,2009.7,1.24506676]
[1772131444469,1.91263869,2010.9,2009.7,1.24506676]
[1772131444665,1.56179147,2010.7,2009.7,0.0011]
[1772131445749,1.24340992,2010.6,2009.7,0.0011]
[1772131446146,1.86604861,2010.6,2009.7,0.0011]
[1772131446766,0.62263869,2010.5,2009.2,0.0011]
[1772131446970,0.62263869,2010.2,2009.2,0.0011]
[1772131447159,1.354,2010.1,2009.2,1.2453714]
[1772131447373,1.354,2010.1,2009.2,0.0011]
[1772131447957,1.24378109,2010.0,2009.2,0.0011]
[1772131448351,2.59776789,2010.1,2009.2,0.0011]
[1772131449368,1.56250286,2010.0,2009.2,0.0011]
[1772131450054,1.24384297,2009.9,2009.2,0.0011]
[1772131451885,1.354,2010.1,2009.2,0.0011]
[1772131452064,2.59772122,2010.1,2009.2,0.0011]
[1772131454983,1.85548268,2010.1,2009.2,0.0011]
[1772131455282,1.35,2010.0,2009.2,0.0011]
[1772131455464,0.61176146,2009.8,2008.8,1.24449956]
[1772131455665,0.61176146,2009.8,2008.7,1.24453822]
[1772131455666,0.61176146,2009.7,2008.7,1.24453822]
[1772131455868,0.61176146,2009.6,2008.6,1.2446004]
[1772131456412,0.61176146,2009.4,2008.3,1.88036914]
[1772131456584,1.349,2009.3,2008.3,1.88036914]
[1772131457483,1.349,2009.3,2008.5,0.0011]
[1772131458363,2.59321784,2009.3,2008.5,0.0011]
[1772131458763,2.53403442,2009.6,2008.5,0.63663997]
[1772131458966,1.347,2009.4,2008.5,0.63663997]
[1772131460317,1.347,2009.4,2008.6,1.88018798]
[1772131460684,1.347,2009.4,2008.7,0.63553997]
[1772131461111,1.29,2009.6,2008.7,0.63553997]
[1772131461301,2.635,2009.8,2008.7,0.63553997]
[1772131462610,3.87891113,2009.8,2008.8,1.24452409]
[1772131462794,3.87890624,2009.8,2008.9,0.63553997]
[1772131463000,2.635,2009.8,2008.9,0.63553997]
[1772131464294,1.344,2010.5,2009.4,0.63553997]
[1772131464792,1.344,2010.5,2009.6,0.63553997]
[1772131465990,1.017,2011.1,2009.6,0.63553997]
[1772131466199,1.62876146,2011.1,2009.7,0.63553997]
[1772131466790,2.87191506,2011.1,2009.9,0.63553997]
[1772131467610,0.61176146,2011.0,2009.9,0.63553997]
[1772131469308,1.24322442,2010.9,2010.0,1.24378109]
[1772131470207,0.001,2010.8,2010.0,1.24378109]
[1772131470524,0.61276146,2010.8,2009.6,0.63553997]
[1772131470820,0.61276146,2010.8,2009.7,1.24396676]
[1772131471451,1.24334808,2010.7,2009.9,1.24384297]
[1772131473794,1.24334808,2010.7,2009.8,1.8794414]
[1772131475202,0.001,2010.8,2009.9,0.63553997]
[1772131475937,0.001,2010.8,2010.1,0.64661165]
[1772131477642,2.18570588,2011.1,2010.3,0.64661165]
[1772131477803,0.67026321,2011.1,2010.0,1.89039274]
[1772131478127,1.91342581,2011.0,2010.0,1.89039274]
[1772131478304,0.67026321,2010.8,2009.9,1.24379726]
[1772131478500,1.2431626,2011.0,2010.0,0.64661165]
[1772131479912,1.90775553,2011.0,2010.0,1.89035108]
[1772131480318,1.2431626,2011.0,2010.1,0.67023042]
[1772131481313,0.66459293,2010.8,2010.0,1.24373943]
[1772131482021,1.24334808,2010.7,2009.9,5.64550392]
[1772131482218,1.335,2010.6,2009.9,5.64550392]
[1772131483918,1.335,2010.6,2010.0,0.0011]
[1772131484117,0.001,2010.5,2010.0,0.0011]
[1772131484538,0.1576005,2012.4,2010.5,0.67023042]
[1772131484842,1.3999128,2012.4,2011.8,5.220312]
[1772131485139,0.66459293,2012.3,2011.8,5.220312]
[1772131485342,0.66459293,2012.1,2010.7,0.67023042]
[1772131485908,0.66459293,2012.1,2010.8,0.67023042]
[1772131486312,1.90711482,2012.1,2011.0,0.67023042]
[1772131488344,5.63452484,2012.3,2011.2,0.67023042]
[1772131488523,0.66459293,2011.9,2010.7,1.86123042]
[1772131488721,0.66459293,2011.9,2010.7,0.67023042]
[1772131488722,2.00859293,2011.8,2010.7,0.67023042]
[1772131489415,1.344,2011.8,2010.7,0.67023042]
[1772131490624,1.344,2011.8,2010.9,0.67023042]
[1772131491452,2.58666899,2011.8,2010.9,0.67023042]
[1772131491847,0.66459293,2011.7,2010.8,1.24328625]
[1772131492543,0.66459293,2011.7,2010.7,4.97314501]
[1772131492544,1.90732596,2011.7,2010.7,4.97314501]
[1772131493116,0.66459293,2011.7,2010.7,4.97314501]
[1772131493316,0.66459293,2011.7,2010.7,5.64337543]
[1772131493317,1.90733476,2011.7,2010.7,5.64337543]
[1772131493513,1.90733476,2011.7,2010.4,1.91371864]
[1772131493514,0.66459293,2011.4,2010.4,1.91371864]
[1772131494749,1.24297717,2011.3,2010.4,1.91371864]
[1772131495632,1.24297717,2011.3,2010.4,1.91371674]
[1772131495934,1.339,2011.2,2010.4,1.91375815]
[1772131496454,7.15639833,2011.8,2010.5,0.67023042]
[1772131496455,2.00259293,2011.5,2010.5,0.67023042]
[1772131497347,1.24291538,2011.4,2010.6,1.24450992]
[1772131500264,1.24291538,2011.4,2010.6,0.0011]
[1772131501234,2.85029881,2011.0,2010.2,0.67023042]
[1772131501444,0.66459293,2011.0,2010.2,1.91388768]
[1772131501662,1.90778577,2011.0,2010.2,1.91388768]
[1772131502039,1.24307409,2011.2,2010.3,0.67023042]
[1772131502240,1.90761041,2011.3,2010.3,0.67023042]
[1772131502477,1.24301748,2011.3,2010.3,0.67023042]
[1772131502766,1.335,2011.2,2010.3,0.67023042]
[1772131502968,6.30472908,2011.8,2010.4,0.67023042]
[1772131503360,6.96932201,2011.8,2010.4,0.67023042]
[1772131503742,6.96932201,2011.8,2010.6,0.67023042]
[1772131503982,2.85029881,2011.7,2010.6,0.67023042]
[1772131504164,0.66459293,2011.4,2010.6,0.67023042]
[1772131505372,1.334,2011.3,2010.6,0.67023042]
[1772131505869,1.24303898,2011.2,2010.6,1.91361984]
[1772131506069,1.24303898,2011.2,2010.3,1.91377557]
[1772131506255,1.90763191,2011.2,2010.3,1.91377557]
[1772131507157,4.09333779,2011.2,2010.3,0.67023042]
[1772131507346,4.09333779,2011.2,2010.3,1.91381003]
[1772131507545,0.66459293,2011.1,2010.3,1.24357961]
[1772131507745,1.2431626,2011.0,2010.1,1.24371921]
[1772131507970,0.66459293,2010.9,2010.0,1.91506322]
[1772131508279,1.2431626,2011.0,2010.0,0.67133042]
[1772131508280,1.332,2010.8,2010.0,0.67133042]
[1772131508452,0.66459293,2010.7,2010.0,0.0011]
[1772131508659,1.332,2010.8,2010.0,1.24487999]
[1772131509950,1.331,2010.9,2010.1,0.72057993]
[1772131510152,1.331,2010.9,2010.2,0.0011]
[1772131510360,0.001,2010.8,2010.2,0.72167993]
[1772131511073,0.001,2010.8,2010.2,0.0011]
[1772131512176,1.24428625,2010.8,2010.2,0.0011]
[1772131513292,0.001,2010.8,2010.2,0.0011]
[1772131513462,0.001,2010.8,2010.2,0.72167993]
[1772131514284,0.001,2010.8,2010.3,1.24359548]
[1772131514590,0.001,2010.8,2010.4,0.72057993]
[1772131516379,0.001,2010.8,2010.4,1.96405928]
[1772131518388,0.001,2010.8,2010.2,0.0011]
[1772131518680,0.001,2010.8,2010.0,1.24483921]
[1772131518681,0.70194328,2010.6,2010.0,0.0011]
[1772131519259,1.327,2010.6,2010.0,0.0011]
[1772131519554,1.327,2010.6,2010.0,1.24487475]
[1772131519756,1.327,2010.6,2010.0,0.0011]
[1772131520387,2.570461,2010.6,2010.0,0.0011]
[1772131521372,1.327,2010.6,2010.0,0.72167993]
[1772131522460,1.2442952,2010.8,2010.2,0.72057993]
[1772131522461,0.001,2010.8,2010.2,0.72057993]
[1772131524187,0.001,2010.8,2010.2,0.72167993]
[1772131524487,0.001,2010.8,2010.4,0.72057993]
[1772131525477,0.001,2010.8,2010.3,1.24359548]
[1772131525792,0.001,2010.8,2010.2,1.24474993]
[1772131526664,0.001,2010.8,2010.2,0.0011]
[1772131528473,0.001,2010.8,2010.2,0.72167993]
[1772131528683,0.001,2010.8,2010.4,0.72057993]
[1772131528870,0.001,2010.8,2010.3,1.24359548]
[1772131529081,0.001,2010.8,2010.3,1.96417541]
[1772131530698,0.001,2010.8,2010.2,0.0011]
[1772131530898,0.70294328,2010.8,2010.2,0.0011]
[1772131532101,1.323,2010.7,2010.2,0.0011]
[1772131533406,1.24340992,2010.6,2010.2,0.0011]
[1772131536406,1.24340992,2010.6,2010.4,0.0011]
[1772131536709,1.24440992,2010.6,2010.4,0.0011]
[1772131537799,0.001,2010.6,2010.4,0.0011]
[1772131539712,1.323,2010.7,2010.4,0.71291559]
[1772131540139,1.323,2010.7,2010.4,1.95641684]
[1772131540589,2.57220916,2011.0,2010.4,1.95641684]
[1772131540917,2.57217012,2011.0,2010.5,0.71181559]
[1772131542410,1.329,2011.0,2010.6,0.71181559]
[1772131543190,0.67799695,2010.9,2010.4,0.0011]
[1772131544319,1.24328625,2010.8,2010.4,0.0011]
[1772131546396,4.97314501,2010.9,2010.4,0.0011]
[1772131546920,1.24322442,2010.9,2010.4,0.0011]
[1772131548013,1.24297717,2011.3,2010.5,0.71181559]
[1772131548197,1.335,2011.2,2010.5,0.71181559]
[1772131548392,1.24297717,2011.3,2010.6,1.95522551]
[1772131548621,4.97129273,2011.6,2010.7,0.71181559]
[1772131548622,1.335,2011.5,2010.7,0.71181559]
[1772131549006,0.67799695,2011.2,2010.4,1.95644403]
[1772131549298,1.335,2011.1,2010.4,1.95644403]
[1772131549699,1.335,2011.1,2010.4,0.71291559]
[1772131549919,2.01299695,2011.1,2010.4,0.71291559]
[1772131550223,2.01299695,2011.1,2010.4,0.0011]
[1772131550623,0.001,2010.7,2010.4,0.0011]
[1772131552500,1.334,2010.7,2010.2,0.0011]
[1772131552720,1.334,2010.7,2010.2,0.71291559]
[1772131552721,2.57735652,2010.7,2010.2,0.71291559]
[1772131552919,2.57735652,2010.7,2010.2,0.0011]
[1772131553438,3.22907046,2010.7,2010.2,0.0011]
[1772131553804,3.22907046,2010.7,2010.0,0.0011]
[1772131553805,0.65171394,2010.6,2010.0,0.0011]
[1772131554310,2.57735652,2010.7,2010.0,1.24486532]
[1772131554514,0.65171394,2010.6,2010.0,0.0011]
[1772131554710,1.24347177,2010.5,2010.0,0.0011]
[1772131554914,1.89518571,2010.5,2010.0,0.0011]
[1772131555119,0.65171394,2010.4,2010.0,0.0011]
[1772131555304,1.334,2010.3,2010.0,0.0011]
[1772131556028,1.98571394,2010.3,2010.0,0.0011]
[1772131557103,1.24365734,2010.2,2009.9,0.0011]
[1772131557727,1.336,2010.3,2009.9,0.0011]
[1772131559130,2.57964674,2010.3,2009.9,0.0011]
[1772131560219,5.62562195,2010.5,2009.9,0.0011]
[1772131560220,1.89523316,2010.5,2009.9,0.0011]
[1772131560424,1.338,2010.4,2009.9,0.68309398]
[1772131561558,1.89530942,2010.3,2009.9,0.0011]
[1772131561940,1.89530942,2010.3,2009.6,0.68199398]
[1772131562639,1.89530942,2010.3,2010.1,0.0011]
[1772131563320,1.89530942,2010.3,2009.9,0.0011]
[1772131566504,0.65171394,2010.0,2009.6,0.0011]
[1772131566714,1.99671394,2009.9,2009.1,1.92629132]
[1772131567437,0.65171394,2009.8,2009.1,0.68199398]
[1772131568133,1.24396676,2009.7,2009.1,0.68199398]
[1772131568433,1.8956807,2009.7,2008.9,0.68199398]
[1772131569942,0.651688,2009.6,2008.9,0.68199398]
[1772131570115,1.344,2009.5,2008.9,0.68199398]
[1772131570737,1.344,2010.1,2009.4,0.6631395]
[1772131573215,1.24378109,2010.0,2009.5,0.6631395]
[1772131574444,2.58776597,2010.1,2009.5,0.6631395]
[1772131574634,2.58776597,2010.1,2009.6,0.6642395]
[1772131575018,2.58876597,2010.1,2009.6,0.6642395]
[1772131576561,2.58876597,2010.1,2009.6,0.0011]
[1772131577439,3.24045397,2010.1,2009.6,0.0011]
[1772131579056,3.24045397,2010.1,2009.4,0.0011]
[1772131579057,0.651688,2010.0,2009.4,0.0011]
[1772131579618,0.651688,2009.8,2009.4,0.0011]
[1772131579817,1.348,2009.7,2009.4,0.0011]
[1772131580517,1.999688,2009.7,2009.4,0.0011]
[1772131581137,1.999688,2009.7,2009.1,0.0011]
[1772131581138,0.651688,2009.6,2009.1,0.0011]
[1772131581848,0.651688,2009.4,2008.5,0.0011]
[1772131582017,0.651688,2009.1,2008.5,0.0011]
[1772131582512,1.349,2009.3,2008.5,0.0011]
[1772131582715,0.651688,2009.4,2008.5,0.6642395]
[1772131582716,1.349,2009.2,2008.5,0.6642395]
[1772131583123,0.651688,2009.1,2008.5,0.0011]
[1772131583734,0.651688,2008.9,2008.5,0.0011]
[1772131583913,1.348,2008.8,2008.5,0.0011]
[1772131584126,1.348,2008.8,2008.3,0.0011]
[1772131584545,1.999688,2008.8,2008.3,0.0011]
[1772131584923,0.651688,2008.7,2008.3,0.0011]
[1772131585122,0.651688,2008.7,2008.0,0.0011]
[1772131585529,0.651688,2008.6,2008.0,0.0011]
[1772131585870,1.89639798,2008.5,2008.0,0.0011]
[1772131586164,1.349,2008.4,2007.6,0.6631395]
[1772131586953,1.349,2008.4,2007.3,1.24540333]
[1772131586954,0.651688,2008.3,2007.3,0.6631395]
[1772131587824,1.89652193,2008.3,2008.2,0.0011]
[1772131588025,0.651688,2008.2,2007.3,0.6631395]
[1772131588257,1.24483393,2008.3,2007.3,0.6631395]
[1772131588460,1.24483393,2008.3,2007.4,0.6631395]
[1772131589133,0.651688,2008.2,2007.4,0.6631395]
[1772131589753,1.24483393,2008.3,2007.4,0.6631395]
[1772131589955,1.89652193,2008.3,2007.4,0.6631395]
[1772131590260,1.89652193,2008.3,2007.4,1.24538213]
[1772131590561,1.89652193,2008.3,2007.5,0.6631395]
[1772131593464,0.651688,2008.2,2007.5,0.6631395]
[1772131594146,1.24483393,2008.3,2007.5,0.6631395]
[1772131594347,1.348,2008.2,2007.6,0.6631395]
[1772131596032,4.97887197,2008.5,2007.6,0.6631395]
[1772131596243,1.348,2008.4,2007.6,0.6631395]
[1772131596642,1.348,2008.4,2007.9,0.62972087]
[1772131596643,2.59281012,2008.4,2007.9,0.62972087]
[1772131597055,0.58830295,2008.7,2007.9,0.62972087]
[1772131597264,1.348,2008.7,2007.9,0.62972087]
[1772131598564,1.348,2008.7,2008.1,0.62972087]
[1772131599665,2.59258845,2008.7,2008.1,0.62972087]
[1772131600671,2.59259307,2008.7,2008.2,1.84019569]
[1772131600847,2.59259307,2008.7,2008.3,0.59529977]
[1772131601733,2.59259307,2008.7,2008.0,0.59529977]
[1772131601939,3.22189287,2008.7,2008.0,0.59529977]
[1772131602135,0.6292998,2008.6,2007.7,1.8415718]
[1772131602340,0.6292998,2008.6,2007.7,1.84159895]
[1772131602658,1.24470998,2008.5,2007.8,0.59529977]
[1772131602841,5.60813973,2008.6,2007.8,0.59529977]
[1772131602842,1.24469669,2008.6,2007.8,0.59529977]
[1772131604245,1.87399649,2008.6,2007.8,0.59529977]
[1772131604439,1.24469669,2008.6,2007.8,0.59529977]
[1772131604670,1.24469669,2008.6,2008.0,0.59529977]
[1772131607470,0.6292998,2009.2,2008.1,0.59529977]
[1772131607664,0.6292998,2009.0,2008.1,0.59529977]
[1772131609768,1.24446214,2008.9,2008.3,0.59529977]
[1772131612071,4.97784857,2009.0,2008.4,0.59529977]
[1772131612384,2.59234164,2009.1,2008.4,0.59529977]
[1772131612760,2.59234164,2009.1,2008.2,7.16775076]
[1772131612761,0.6292998,2009.0,2008.2,0.0011]
[1772131612966,0.001,2008.7,2008.2,0.0011]
[1772131614880,1.24558605,2008.7,2008.2,0.0011]
[1772131615052,1.24558605,2008.7,2008.2,0.59639977]
[1772131615053,0.001,2008.7,2008.2,0.59639977]
[1772131616282,0.6302998,2008.7,2008.2,0.0011]
[1772131616890,0.001,2008.7,2008.2,0.59639977]
[1772131618355,0.001,2008.7,2008.2,0.0011]
[1772131620584,0.001,2008.7,2008.2,0.59639977]
[1772131621859,0.6292998,2008.5,2008.0,0.0011]
[1772131622266,1.87407175,2008.4,2008.0,0.0011]
[1772131622559,1.24477195,2008.4,2008.0,0.0011]
[1772131623079,0.6292998,2008.3,2008.0,0.0011]
[1772131623285,1.24477195,2008.4,2008.0,0.0011]
[1772131624069,1.87407175,2008.4,2008.0,0.0011]
[1772131625084,1.87407175,2008.4,2008.2,0.0011]
[1772131626059,1.87407175,2008.4,2008.0,0.0011]
[1772131626972,1.24477195,2008.4,2008.0,0.0011]
[1772131627612,0.001,2008.5,2008.0,0.59639977]
[1772131627891,0.001,2008.7,2008.3,0.59529977]
[1772131628086,0.807,2009.6,2008.8,2.18731501]
[1772131628464,1.4362998,2009.6,2008.9,0.59529977]
[1772131629172,1.24409056,2009.5,2008.9,1.83976113]
[1772131629374,2.68036556,2009.6,2008.9,1.83976113]
[1772131630591,0.63490991,2009.5,2008.7,1.24455342]
[1772131630796,0.63490991,2009.5,2008.8,0.61916554]
[1772131631094,4.97573347,2009.8,2009.0,0.61916554]
[1772131631277,1.353,2009.7,2009.0,0.61916554]
[1772131631473,1.98790991,2009.7,2009.0,0.61916554]
[1772131632583,1.98790991,2009.7,2008.9,0.61916554]
[1772131632584,1.353,2009.7,2008.9,0.61916554]
[1772131632799,1.98790991,2009.7,2008.9,0.61916554]
[1772131633000,0.63490991,2009.6,2008.7,1.8637303]
[1772131633178,1.87900047,2009.5,2008.7,1.8637303]
[1772131633372,0.63490991,2009.4,2008.7,1.8637303]
[1772131633571,0.63490991,2009.4,2008.7,0.61916554]
[1772131633572,1.353,2009.3,2008.7,0.61916554]
[1772131633779,0.63490991,2009.2,2008.5,0.61916554]
[1772131634288,1.24409056,2009.5,2008.4,0.61916554]
[1772131634499,1.98690991,2009.4,2008.4,0.61916554]
[1772131634684,0.63490991,2009.3,2008.4,0.61916554]
[1772131635300,1.24427632,2009.2,2008.5,1.24470998]
[1772131635607,1.24427632,2009.2,2008.5,1.86387552]
[1772131637209,1.87916967,2009.3,2008.5,1.86387552]
[1772131638001,1.87916967,2009.3,2008.6,0.61916554]
[1772131638202,1.353,2009.4,2008.8,0.61916554]
[1772131638413,2.59715722,2009.4,2008.8,0.61916554]
[1772131638711,1.353,2009.4,2008.8,0.61916554]
[1772131639386,1.353,2009.4,2008.9,0.61916554]
[1772131640200,1.353,2009.4,2009.0,0.61916554]
[1772131641183,1.352,2009.8,2009.2,0.61916554]
[1772131641383,1.24487965,2009.9,2009.2,0.61916554]
[1772131641983,0.001,2009.9,2009.5,0.61916554]
[1772131642195,0.001,2010.1,2009.5,0.61916554]
[1772131642196,0.001,2010.1,2009.8,0.61916554]
[1772131642522,4.97316562,2010.8,2010.1,0.61916554]
[1772131642523,0.807,2010.8,2010.1,0.61916554]
[1772131642682,1.24302419,2011.3,2010.4,0.61916554]
[1772131642884,2.59502419,2011.3,2010.4,0.61916554]
[1772131643095,3.2299341,2011.3,2010.4,0.61916554]
[1772131644198,3.2299341,2011.3,2010.5,1.24347177]
[1772131644582,0.63490991,2011.2,2010.1,1.86282288]
[1772131644784,2.59502419,2011.3,2010.3,0.61916554]
[1772131645121,0.63490991,2011.2,2010.3,0.61916554]
[1772131645315,2.59502419,2011.3,2010.5,2.18152496]
[1772131646291,2.59502419,2011.3,2010.5,3.4249464]
[1772131646493,1.87780688,2011.5,2010.6,0.61916554]
[1772131646801,1.35,2011.3,2010.6,0.61916554]
[1772131648307,1.24303898,2011.2,2010.6,0.61916554]
[1772131648490,1.24303898,2011.2,2010.6,1.86257466]
[1772131648695,0.63490991,2011.1,2010.0,0.61916554]
[1772131648999,0.63490991,2011.0,2010.0,0.61916554]
[1772131650432,0.63490991,2010.8,2009.8,1.56235942]
[1772131650593,1.98390991,2010.7,2009.8,3.42538191]
[1772131651021,0.63490991,2010.6,2009.5,1.86321975]
[1772131651223,0.63490991,2010.6,2009.6,0.61916554]
[1772131651409,0.63490991,2010.5,2009.3,0.61916554]
[1772131652210,0.63490991,2010.5,2009.6,0.61916554]
[1772131652211,1.348,2010.4,2009.6,0.61916554]
[1772131653321,1.348,2010.4,2009.4,1.24412898]
[1772131653322,1.87850539,2010.3,2009.4,1.24412898]
[1772131653626,1.87850539,2010.3,2009.3,1.86333123]
[1772131654329,0.63490991,2010.2,2009.2,1.24424673]
[1772131654901,0.63490991,2010.1,2009.0,1.2443767]
[1772131655095,0.63490991,2010.1,2008.9,0.61916554]
[1772131655324,3.224691,2010.0,2009.0,0.61916554]
[1772131655698,3.224691,2010.0,2009.2,2.16698009]
[1772131655911,3.224691,2010.0,2009.2,0.60462067]
[1772131659505,0.60530071,2009.9,2009.1,1.24433443]
[1772131659913,0.60530071,2009.9,2009.0,3.39802099]
[1772131660317,0.60530071,2009.9,2009.1,0.59130777]
[1772131660799,0.60530071,2009.9,2009.0,1.56235942]
[1772131661006,0.60530071,2009.7,2008.7,0.0011]
[1772131661206,0.60530071,2009.7,2008.7,1.83698907]
[1772131661403,0.60530071,2009.7,2008.7,0.59240777]
[1772131661926,1.24402866,2009.6,2009.4,0.0011]
[1772131662128,1.346,2009.5,2008.7,1.83699027]
[1772131662501,1.346,2009.5,2008.7,0.59240777]
[1772131662705,1.95130071,2009.5,2008.7,1.83698628]
[1772131662916,1.95130071,2009.5,2009.2,0.0011]
[1772131663231,0.60530071,2009.4,2008.9,0.0011]
[1772131664060,0.60530071,2009.1,2008.7,0.0011]
[1772131664260,1.95130071,2009.0,2008.5,0.0011]
[1772131664752,0.60530071,2008.9,2008.5,0.0011]
[1772131665120,0.60530071,2008.9,2008.4,0.0011]
[1772131666249,1.8498248,2008.8,2008.2,0.0011]
[1772131666886,0.60530071,2008.7,2008.2,0.0011]
[1772131667167,1.56235942,2008.6,2007.9,0.0011]
[1772131667468,0.60530071,2008.4,2007.9,0.0011]
[1772131668177,1.24483393,2008.3,2007.9,0.0011]
[1772131668333,1.85013464,2008.3,2007.9,0.0011]
[1772131669177,1.85013464,2008.3,2007.7,0.0011]
[1772131670357,1.349,2008.6,2007.7,0.59240777]
[1772131672474,1.24470998,2008.5,2007.8,1.8364517]
[1772131672990,1.24470998,2008.5,2007.9,0.59130777]
[1772131673709,1.349,2008.7,2007.9,0.59130777]
[1772131674565,1.84994872,2008.6,2007.9,0.59130777]
[1772131674754,1.84994872,2008.6,2007.7,1.24627488]
[1772131674755,0.60530071,2008.5,2007.7,1.24629361]
[1772131675273,0.60530071,2008.5,2007.7,1.83760138]
[1772131675472,0.60530071,2008.5,2007.7,0.59240777]
[1772131675879,0.60530071,2008.5,2008.1,0.0011]
[1772131676075,0.60530071,2008.3,2007.7,0.0011]
[1772131676264,1.348,2008.2,2007.7,0.0011]
[1772131676588,1.24495792,2008.1,2007.9,0.0011]
[1772131677163,1.349,2008.1,2007.9,0.0011]
[1772131678766,2.59395912,2008.1,2007.9,0.0011]
[1772131678962,3.19925983,2008.1,2007.7,0.0011]
[1772131679162,2.59395912,2008.1,2007.7,0.0011]
[1772131680295,2.59396452,2008.1,2007.7,0.0011]
[1772131680667,1.352,2008.3,2007.7,0.59240777]
[1772131680868,1.24489592,2008.2,2007.7,0.59240777]
[1772131681076,2.16766013,2008.1,2007.6,0.0011]
[1772131681265,2.16766013,2008.1,2007.2,1.83792342]
[1772131681266,1.56235942,2007.6,2007.2,0.0011]
[1772131681477,1.352,2007.5,2007.2,0.0011]
[1772131682788,1.95730071,2007.5,2006.6,1.83715488]
[1772131682987,1.24539204,2007.4,2006.6,1.83715488]
[1772131683565,1.56235942,2007.1,2006.3,0.59130777]
[1772131683790,1.56235942,2007.1,2006.0,4.35615722]
[1772131683791,1.95630071,2007.0,2006.0,4.35615722]
[1772131684269,1.351,2006.9,2006.1,0.59130777]
[1772131684469,1.56235942,2007.3,2006.1,0.59130777]
[1772131684681,1.95630071,2007.2,2006.2,0.59130777]
[1772131685166,1.24557819,2007.1,2006.3,0.59130777]
[1772131685684,0.60530071,2007.0,2006.1,0.59130777]
[1772131686275,0.60530071,2006.7,2005.7,0.59130777]
[1772131686595,1.35,2006.6,2005.7,0.59130777]
[1772131686797,1.95530071,2006.6,2005.7,0.59130777]
[1772131687170,2.80831008,2006.5,2005.7,1.83775168]
[1772131687371,3.41361079,2006.5,2005.7,1.83775168]
[1772131687590,1.35,2006.7,2005.8,0.59130777]
[1772131687772,1.95530071,2006.7,2005.8,0.59130777]
[1772131688469,1.95530071,2006.7,2006.5,0.0011]
[1772131688679,1.95530071,2006.7,2005.8,0.59130777]
[1772131688877,1.56235942,2006.5,2005.6,1.2464676]
[1772131689084,1.35,2006.7,2005.6,1.2464676]
[1772131689085,1.349,2006.7,2005.9,0.59130777]
[1772131689288,1.349,2006.7,2006.1,0.59130777]
[1772131689669,2.59451614,2007.2,2006.3,0.6247648]
[1772131689900,1.24551614,2007.2,2006.3,0.6247648]
[1772131690076,2.59451614,2007.2,2006.3,0.6247648]
[1772131690277,0.001,2007.3,2006.6,0.6247648]
[1772131690478,1.24645424,2007.3,2006.6,0.6247648]
[1772131691197,1.24645424,2007.3,2006.4,0.6247648]
[1772131691701,0.001,2007.3,2006.4,0.6247648]
[1772131693700,0.001,2007.3,2006.5,1.24595066]
[1772131693902,0.001,2007.3,2006.5,1.87071546]
[1772131694399,0.001,2007.3,2006.6,0.6247648]
[1772131695599,1.56235942,2007.1,2006.3,1.87083413]
[1772131695908,0.61791669,2007.3,2006.3,1.87083413]
[1772131695909,4.98218047,2007.2,2006.3,1.87083413]
[1772131696207,5.59909716,2007.2,2006.3,1.87083413]
[1772131697910,0.001,2007.3,2006.4,0.6247648]
[1772131698101,1.347,2007.2,2006.4,0.6247648]
[1772131699912,2.59251848,2007.2,2006.6,0.6247648]
[1772131701715,0.61691669,2007.1,2006.5,0.0011]
[1772131701889,1.86255694,2007.0,2006.5,0.0011]
[1772131702091,1.24564025,2007.0,2006.5,0.0011]
[1772131702309,0.61691669,2006.9,2006.5,0.0011]
[1772131703805,1.24564025,2007.0,2006.5,0.0011]
[1772131704115,0.001,2007.3,2006.6,1.24588856]
[1772131704711,0.001,2007.3,2006.5,1.87176667]
[1772131705108,0.61791669,2007.3,2006.5,1.87176667]
[1772131705306,0.61691669,2007.2,2006.5,0.0011]
[1772131706423,0.61691669,2007.0,2006.5,0.0011]
[1772131706620,1.348,2006.9,2006.5,0.0011]
[1772131706922,0.61691669,2006.8,2006.5,0.0011]
[1772131708025,1.96491669,2006.9,2006.5,0.0011]
[1772131708216,1.96491669,2006.9,2006.0,0.0011]
[1772131708217,0.61691669,2006.8,2006.0,0.0011]
[1772131708406,0.61691669,2006.6,2006.0,0.0011]
[1772131709429,4.98330592,2006.8,2006.0,0.0011]
[1772131709430,1.86243283,2007.2,2006.1,0.6247648]
[1772131709733,1.348,2007.0,2006.2,0.6247648]
[1772131710807,1.348,2007.0,2006.3,1.87083966]
[1772131711117,2.59364782,2007.0,2006.3,1.87083966]
[1772131711500,1.348,2007.0,2006.3,1.87083966]
[1772131711913,2.59364708,2007.0,2006.3,1.87083966]
[1772131712633,2.59364708,2007.0,2006.5,0.0011]